[Event "Polish Youth Ekstraliga 2022"]
[Site "Lublin"]
[Date "2022.06.27"]
[Round "3.6"]
[White "Smietanska, Wiktoria"]
[Black "Polakiewicz, Blanka"]
[Result "1-0"]
[ECO "B42"]
[WhiteElo "1879"]
[BlackElo "1151"]
[Annotator "NA RC"]
[PlyCount "115"]
[EventDate "2022.06.24"]
[EventType "team-tourn"]
[EventCountry "POL"]
[SourceTitle "playchess.com"]
[Source "ChessBase"]
[SourceQuality "1"]
[TimeControl "40/5400+30:1800+30"]

{[%evp 9,113,23,33,41,32767,32767,32767,32767,32767,32767,32767,32767,32767,30,32767,32767,32767,48,32767,50,68,55,32767,32767,32767,110,97,26,54,45,46,47,55,32767,35,32767,32767,32767,32767,105,97,95,93,109,32767,109,207,113,32767,107,129,121,32767,32767,32767,32767,32767,231,32767,32767,162,151,32767,32767,148,32767,32767,32767,171,32767,32767,32767,199,32767,32767,32767,32767,32767,32767,208,32767,291,197,201,32767,155,32767,236,115,32767,347,235,32767,273,334,367,426,32767,32767,32767,29984,29985,29991,29992,29998,29999]} 1. e4 {[%emt 0:00:02]} c5 {[%emt 0:00:04]} 2. Nf3 {[%emt 0:00:06]} e6 {[%emt 0:00:05]} 3. d4 {[%emt 0:00:07]} cxd4 {[%emt 0:00:05]} 4. Nxd4 {[%emt 0:00:06]} a6 {[%emt 0:00:07]} 5. Bd3 {[%emt 0:00:10]} Qc7 {[%emt 0:00:08]} 6. Qe2 {[%emt 0:00:14]} d6 {[%emt 0:00:17]} 7. O-O {[%emt 0:00:19]} Nf6 {[%emt 0:00:11]} 8. f4 {[%emt 0:03:39]} Nbd7 {[%emt 0:00:16]} 9. c4 {[%emt 0:01:18]} Be7 {[%emt 0:02:52]} 10. Nc3 {[%emt 0:11:36]} O-O {[%emt 0:00:35]} 11. Be3 {[%emt 0:01:19]} b6 {[%emt 0:00:36]} 12. Rac1 {[%emt 0:03:41] 12.Rac1 is better than 12.g4.} Bb7 {[%emt 0:01:26]} 13. f5 {[%emt 0:09:40]} e5 {[%emt 0:02:01]} 14. Nb3 {[%emt 0:04:08]} Rac8 {[%emt 0:05:45]} 15. g4 {[%emt 0:05:04]} h6 {[%emt 0:05:11] [#]} 16. Qg2 $146 {[%emt 0:05:04]} ({Predecessor:} 16. Nd5 Qd8 17. Nd2 Nh7 18. Nxe7+ Qxe7 19. Nf3 Nc5 20. Bf2 Ng5 21. Nxg5 Qxg5 {0-1 (47) Sheynin,I (2171)-Guzenko,A (2088) St Petersburg 2008}) 16... Nc5 {[%emt 0:03:24]} 17. Nxc5 {[%emt 0:02:56]} dxc5 {[%emt 0:02:12] [#]} 18. Qh3 {[%emt 0:04:16]} (18. g5 $1 $16 {[%cal Rg5h6]} hxg5 19. Bxg5 (19. Nd5 Qd8 $11)) 18... Nh7 {[%emt 0:05:19]} 19. Qg3 {[%emt 0:04:19]} Bg5 {[%emt 0:06:24]} 20. Bxg5 {[%emt 0:01:44]} hxg5 {[%emt 0:00:47]} 21. Qh3 {[%emt 0:05:36]} Qd6 {[%emt 0:04:46]} 22. Nd5 {[%emt 0:02:42]} Bxd5 {[%emt 0:01:41]} 23. cxd5 {[%emt 0:06:26]} a5 {[%emt 0:02:54]} 24. Kg2 {[%emt 0:01:16]} Qh6 {[%emt 0:03:41]} 25. Qf3 {[%emt 0:01:37]} Qh4 {[%emt 0:06:02]} 26. h3 {[%emt 0:02:27]} Nf6 {[%emt 0:06:28]} 27. Bb5 {[%emt 0:01:22]} Qh6 {[%emt 0:09:07] [#]} (27... Rcd8 $16 28. Rc3 Rd6) 28. Rh1 {[%emt 0:00:38]} (28. d6 $1 $18) 28... Qh4 {[%emt 0:02:36]} 29. b3 {[%emt 0:01:29]} (29. d6 $18) 29... Rfd8 {[%emt 0:05:25]} 30. Rhe1 {[%emt 0:02:00]} Nd7 {[%emt 0:02:15]} 31. Qc3 {[%emt 0:01:05]} f6 {[%emt 0:00:46]} 32. Qc4 {[%emt 0:00:55]} Kh8 {[%emt 0:01:27]} 33. Rcd1 {[%emt 0:01:04]} (33. d6 $142) 33... Nb8 {[%emt 0:03:27]} 34. Qa4 {[%emt 0:03:09]} Kh7 {[%emt 0:01:48]} 35. Re3 {[%emt 0:01:41]} Rd6 {[%emt 0:01:25]} 36. Be8 {[%emt 0:01:24]} Kg8 {[%emt 0:02:15]} 37. Rh1 {[%emt 0:01:45]} Rcd8 {[%emt 0:01:16]} 38. Qb5 {[%emt 0:01:42]} Kh7 {[%emt 0:01:02]} (38... Nd7 $16) 39. Bf7 {[%emt 0:00:56]} Kh8 {[%emt 0:01:50]} 40. Qe2 {[%emt 0:00:00]} Kh7 {[%emt 0:00:00]} 41. Qc4 {[%emt 0:07:14]} Rc8 {[%emt 0:03:56]} 42. a3 {[%emt 0:01:05]} Rcd8 {[%emt 0:03:11]} 43. Be6 {[%emt 0:01:30]} Kh8 {[%emt 0:02:11]} 44. Rc1 {[%emt 0:04:18]} Kh7 {[%emt 0:01:42]} 45. b4 {[%emt 0:02:03]} axb4 {[%emt 0:01:18]} 46. axb4 {[%emt 0:00:14]} cxb4 {[%emt 0:00:17]} 47. Ra1 $2 {[%emt 0:01:27]} (47. Qb5 $18 {is the precise move to win.}) 47... Nd7 {[%emt 0:03:02]} 48. Qxb4 {[%emt 0:04:44]} Nc5 {[%emt 0:01:23]} 49. Ra7 {[%emt 0:00:45]} Qh6 {[%emt 0:03:30]} 50. Bf7 {[%emt 0:01:19]} Kh8 {[%emt 0:01:40]} 51. Rea3 {[%emt 0:01:55]} Qh4 {[%emt 0:01:43]} 52. Ra8 $2 {[%emt 0:01:29]} (52. Bg6 Rc8 53. Ra8) 52... Kh7 {[%emt 0:01:30]} 53. Bg6+ {[%emt 0:00:38]} Kh8 {[%emt 0:01:11]} 54. Rxd8+ {[%emt 0:00:40]} Rxd8 {[%emt 0:00:07]} 55. Qxb6 {[%emt 0:01:02]} Rc8 {[%emt 0:00:36] [#]} 56. Qxc5 $3 {[%emt 0:00:22]} Rxc5 {[%emt 0:00:10]} 57. Ra8+ {[%emt 0:00:05]} Rc8 {[%emt 0:00:08]} 58. Rxc8# {[%emt 0:00:06]} 1-0

[Event "Polish Youth Ekstraliga 2022"]
[Site "Lublin"]
[Date "2022.06.27"]
[Round "3.8"]
[White "Grzadka, Artur"]
[Black "Zdybel, Przemyslaw"]
[Result "0-1"]
[ECO "A15"]
[WhiteElo "1718"]
[BlackElo "2037"]
[Annotator "NA RC"]
[PlyCount "74"]
[EventDate "2022.06.24"]
[EventType "team-tourn"]
[EventCountry "POL"]
[SourceTitle "playchess.com"]
[Source "ChessBase"]
[SourceQuality "1"]
[TimeControl "40/5400+30:1800+30"]

1. c4 {[%emt 0:00:06]} Nf6 {[%emt 0:00:12]} 2. g3 {[%emt 0:00:05]} g6 {[%emt 0:02:16]} 3. Bg2 {[%emt 0:00:15]} Bg7 {[%emt 0:00:44]} 4. Nc3 {[%emt 0:00:16]} O-O {[%emt 0:00:08]} 5. d3 {[%emt 0:02:27]} d6 {[%emt 0:05:04]} 6. e4 {[%emt 0:04:14]} c5 {[%emt 0:01:03]} 7. Nge2 {[%emt 0:00:29]} Nc6 {[%emt 0:00:22]} 8. O-O {[%emt 0:00:41]} a6 {[%emt 0:01:15]} 9. h3 {[%emt 0:14:44]} Rb8 {[%emt 0:01:19]} 10. a4 {[%emt 0:01:29]} Ne8 {[%emt 0:05:22]} 11. Be3 {[%emt 0:06:46]} Nd4 {[%emt 0:01:25]} 12. Rb1 {[%emt 0:05:39]} Nc7 {[%emt 0:23:21]} 13. b4 {[%emt 0:04:23]} Nce6 {[%emt 0:24:27]} 14. b5 {[%emt 0:05:04]} axb5 {[%emt 0:11:36]} 15. axb5 {[%emt 0:01:36]} Ra8 {[%emt 0:00:13]} 16. Qd2 {[%emt 0:11:51]} Qa5 {[%emt 0:04:21]} 17. Rfc1 {[%emt 0:15:11]} Nxe2+ $1 {[%emt 0:14:35]} 18. Nxe2 {[%emt 0:00:12]} Qxd2 {[%emt 0:00:07]} 19. Bxd2 {[%emt 0:00:04]} Ra2 {[%emt 0:00:17]} 20. Rd1 {[%emt 0:01:21]} b6 {[%emt 0:04:27]} 21. Kf1 {[%emt 0:04:22]} f5 {[%emt 0:03:52]} 22. exf5 {[%emt 0:02:40]} Rxf5 {[%emt 0:00:28]} 23. Be4 {[%emt 0:00:51]} Rf8 {[%emt 0:01:14]} 24. Bd5 {[%emt 0:03:20]} Kh8 {[%emt 0:00:56]} 25. h4 {[%emt 0:08:16]} Nd4 {[%emt 0:03:22]} (25... Nc7 $19 26. Be3 Nxd5 27. cxd5 Bh3+ 28. Ke1 Bg2) 26. Nc1 {[%emt 0:01:11]} (26. Nxd4 $17 Bxd4 27. f3) 26... Rc2 {[%emt 0:01:44]} 27. Ne2 {[%emt 0:04:24]} Bg4 {[%emt 0:03:23]} 28. Nxd4 {[%emt 0:00:37]} Bxd4 {[%emt 0:00:10]} 29. f3 {[%emt 0:00:23]} Bxf3 {[%emt 0:00:06]} 30. Bxf3 {[%emt 0:00:44]} Rxf3+ {[%emt 0:00:02]} 31. Ke1 {[%emt 0:00:32]} Rxg3 {[%emt 0:01:07]} 32. Rbc1 {[%emt 0:00:47]} Rxc1 {[%emt 0:02:17]} (32... Ra2 $142 33. Ke2 Rg2+ 34. Kf1 Rf2+ 35. Ke1 Rh2) 33. Bxc1 {[%emt 0:00:05]} Rh3 {[%emt 0:00:18]} 34. Bg5 $19 {[%emt 0:00:15]} Kg7 {[%emt 0:00:43]} 35. Kd2 {[%emt 0:00:59]} Rh2+ {[%emt 0:00:38]} 36. Ke1 {[%emt 0:00:08]} Bf6 {[%emt 0:01:02]} 37. Bxf6+ {[%emt 0:00:34]} Kxf6 {[%emt 0:00:11]} 0-1

[Event "Polish Youth Ekstraliga 2022"]
[Site "Lublin"]
[Date "2022.06.27"]
[Round "3.9"]
[White "Mulawa, Cyprian"]
[Black "Przybylski, Jan"]
[Result "1-0"]
[ECO "E09"]
[WhiteElo "2050"]
[BlackElo "1694"]
[Annotator "RC"]
[PlyCount "67"]
[EventDate "2022.06.24"]
[EventType "team-tourn"]
[EventCountry "POL"]
[SourceTitle "playchess.com"]
[Source "ChessBase"]
[SourceQuality "1"]
[TimeControl "40/5400+30:1800+30"]

1. d4 {[%emt 0:00:08]} d5 {[%emt 0:00:07]} 2. Nf3 {[%emt 0:00:15]} Nf6 {[%emt 0:00:06]} 3. c4 {[%emt 0:00:03]} e6 {[%emt 0:00:09]} 4. g3 {[%emt 0:00:03]} Be7 {[%emt 0:00:41]} 5. Bg2 {[%emt 0:00:04]} O-O {[%emt 0:00:46]} 6. O-O {[%emt 0:00:05]} c6 {[%emt 0:02:16]} 7. Qc2 {[%emt 0:00:05]} Nbd7 {[%emt 0:01:03]} 8. Nbd2 {[%emt 0:00:05]} b6 {[%emt 0:07:57]} 9. e4 {[%emt 0:00:18]} Bb7 {[%emt 0:01:41]} 10. e5 {[%emt 0:02:49]} Ne8 {[%emt 0:00:33]} 11. b3 {[%emt 0:06:15]} Nc7 {[%emt 0:06:37]} 12. Bb2 {[%emt 0:03:22]} Rc8 {[%emt 0:02:58]} 13. Rad1 {[%emt 0:02:06]} c5 {[%emt 0:04:38]} 14. Qb1 {[%emt 0:02:27]} f6 {[%emt 0:09:14]} 15. exf6 {[%emt 0:07:52]} Bxf6 {[%emt 0:02:46]} 16. dxc5 {[%emt 0:19:46]} bxc5 {[%emt 0:02:50]} 17. Bxf6 {[%emt 0:01:21]} Qxf6 {[%emt 0:00:53]} 18. cxd5 {[%emt 0:02:04]} exd5 {[%emt 0:02:06]} 19. a4 {[%emt 0:18:02]} Na6 {[%emt 0:12:49]} 20. Rfe1 {[%emt 0:03:59]} Rce8 {[%emt 0:02:30]} 21. Rxe8 {[%emt 0:03:54]} Rxe8 {[%emt 0:00:50]} 22. Re1 {[%emt 0:00:01]} Ne5 {[%emt 0:10:43]} 23. Nxe5 {[%emt 0:03:08]} Rxe5 {[%emt 0:00:31]} 24. Nc4 {[%emt 0:05:30]} Rxe1+ {[%emt 0:04:47]} 25. Qxe1 {[%emt 0:00:07]} Bc6 {[%emt 0:01:19]} 26. Na5 {[%emt 0:03:41]} Nb4 {[%emt 0:06:58]} 27. Nxc6 {[%emt 0:00:40]} Qxc6 {[%emt 0:00:11]} 28. Qe7 {[%emt 0:00:20]} a6 {[%emt 0:02:39]} 29. Bh3 {[%emt 0:00:32]} h6 {[%emt 0:01:52]} 30. Qd8+ {[%emt 0:05:07]} Kf7 {[%emt 0:02:55]} 31. Bd7 {[%emt 0:00:04]} Qd6 {[%emt 0:00:46]} 32. Be8+ {[%emt 0:00:03]} Ke6 {[%emt 0:00:19]} 33. Bf7+ {[%emt 0:00:02]} Ke5 {[%emt 0:00:16]} 34. f4+ {[%emt 0:00:01]} 1-0

[Event "Polish Youth Ekstraliga 2022"]
[Site "Lublin"]
[Date "2022.06.27"]
[Round "3.10"]
[White "Terkiewicz, Bruno"]
[Black "Suska, Szymon"]
[Result "0-1"]
[ECO "A53"]
[WhiteElo "1320"]
[BlackElo "1604"]
[Annotator "NA RC"]
[PlyCount "64"]
[EventDate "2022.06.24"]
[EventType "team-tourn"]
[EventCountry "POL"]
[SourceTitle "playchess.com"]
[Source "ChessBase"]
[SourceQuality "1"]
[TimeControl "40/5400+30:1800+30"]

1. d4 {[%emt 0:00:03]} Nf6 {[%emt 0:00:25]} 2. c4 {[%emt 0:00:02]} d6 {[%emt 0:00:42]} 3. Nf3 {[%emt 0:00:16]} Nbd7 {[%emt 0:01:06]} 4. Nc3 {[%emt 0:00:47]} e5 {[%emt 0:02:48]} 5. e3 {[%emt 0:00:48]} Be7 {[%emt 0:04:17]} 6. g3 {[%emt 0:00:27]} O-O {[%emt 0:01:08]} 7. Bg2 {[%emt 0:00:01]} c6 {[%emt 0:01:47]} 8. Qc2 {[%emt 0:02:28]} Qc7 {[%emt 0:04:34]} 9. O-O {[%emt 0:00:30]} b6 {[%emt 0:05:52]} 10. b3 {[%emt 0:01:49]} Bb7 {[%emt 0:02:40]} 11. Bb2 {[%emt 0:04:11]} Rac8 {[%emt 0:08:10]} 12. Nh4 {[%emt 0:23:00]} Rfe8 {[%emt 0:08:26]} 13. Rfe1 {[%emt 0:08:37]} Bf8 {[%emt 0:04:14]} 14. f4 {[%emt 0:01:58]} g6 {[%emt 0:10:36]} 15. Rad1 {[%emt 0:11:20]} a6 {[%emt 0:07:43]} 16. e4 {[%emt 0:17:36]} b5 {[%emt 0:07:40]} 17. c5 {[%emt 0:14:37]} exd4 {[%emt 0:03:53]} 18. cxd6 {[%emt 0:00:02]} Bxd6 {[%emt 0:03:42]} 19. Ne2 {[%emt 0:00:16]} Bb4 {[%emt 0:01:14]} 20. Nxd4 {[%emt 0:03:56]} Bxe1 {[%emt 0:01:07]} 21. Rxe1 {[%emt 0:00:08]} c5 {[%emt 0:01:10]} 22. Ndf5 {[%emt 0:00:50]} c4 {[%emt 0:09:25]} 23. Nh6+ {[%emt 0:03:08]} Kg7 {[%emt 0:00:37]} 24. e5 {[%emt 0:01:44]} c3 {[%emt 0:01:05]} 25. N4f5+ {[%emt 0:01:25]} gxf5 {[%emt 0:03:26]} 26. Qxf5 {[%emt 0:01:46]} Qb6+ {[%emt 0:00:56]} 27. Kh1 {[%emt 0:00:21]} Bxg2+ {[%emt 0:00:08]} 28. Kxg2 {[%emt 0:00:03]} Qc6+ {[%emt 0:00:16]} 29. Kh3 {[%emt 0:00:18]} Ng8 {[%emt 0:02:57]} 30. Qxf7+ {[%emt 0:00:37]} Kh8 {[%emt 0:00:16]} 31. Bxc3 {[%emt 0:01:37]} Qxh6+ {[%emt 0:00:43]} 32. Kg2 {[%emt 0:00:11]} Qe6 {[%emt 0:00:52]} 0-1

[Event "Polish Youth Ekstraliga 2022"]
[Site "Lublin"]
[Date "2022.06.27"]
[Round "3.11"]
[White "Rejniak, Zuzanna"]
[Black "Bukala, Weronika"]
[Result "0-1"]
[ECO "A04"]
[WhiteElo "1804"]
[BlackElo "1827"]
[Annotator "NA RC"]
[PlyCount "56"]
[EventDate "2022.06.24"]
[EventType "team-tourn"]
[EventCountry "POL"]
[SourceTitle "playchess.com"]
[Source "ChessBase"]
[SourceQuality "1"]
[TimeControl "40/5400+30:1800+30"]

1. Nf3 {[%emt 0:00:10]} c5 {[%emt 0:01:42]} 2. g3 {[%emt 0:00:21]} Nc6 {[%emt 0:00:13]} 3. Bg2 {[%emt 0:01:10]} g6 {[%emt 0:04:08]} 4. c4 {[%emt 0:00:20]} Bg7 {[%emt 0:00:11]} 5. O-O {[%emt 0:00:09]} Nf6 6. d4 {[%emt 0:02:41]} cxd4 {[%emt 0:04:12]} 7. Nxd4 {[%emt 0:00:06]} O-O {[%emt 0:00:38]} 8. Nc2 {[%emt 0:01:09]} d6 {[%emt 0:03:02]} 9. Nc3 {[%emt 0:02:20]} Nd7 {[%emt 0:01:46]} 10. Bd2 {[%emt 0:14:00]} a5 {[%emt 0:10:37]} 11. b3 {[%emt 0:05:41]} Nc5 {[%emt 0:02:53]} 12. Rb1 {[%emt 0:01:46]} Bf5 {[%emt 0:04:04]} 13. Nd5 {[%emt 0:18:21]} (13. e4 $14 Bd7 14. Ne3) 13... Nb4 {[%emt 0:08:55]} 14. e4 {[%emt 0:17:43]} Bxe4 {[%emt 0:07:13]} (14... Nxe4 $17 15. Bxb4 axb4) 15. Bxe4 {[%emt 0:02:01]} Nxe4 {[%emt 0:00:12]} 16. Ncxb4 {[%emt 0:05:34]} Nxd2 {[%emt 0:02:24]} 17. Qxd2 {[%emt 0:00:08]} axb4 {[%emt 0:00:20]} 18. Qxb4 {[%emt 0:02:16]} e6 {[%emt 0:09:51]} 19. Nb6 {[%emt 0:06:09]} Rxa2 {[%emt 0:10:35]} 20. Rbd1 $17 {[%emt 0:00:46]} Be5 {[%emt 0:04:25]} 21. f4 $2 {[%emt 0:00:41]} (21. Qb5 $17 {was called for.}) 21... Bf6 {[%emt 0:00:26]} 22. Rxd6 {[%emt 0:04:42]} Qc7 {[%emt 0:04:46]} 23. Rfd1 {[%emt 0:06:15]} Be7 {[%emt 0:01:30]} 24. Nd7 {[%emt 0:02:34]} Rd8 {[%emt 0:04:03]} 25. Qb6 {[%emt 0:04:27]} Qxb6+ {[%emt 0:01:20]} 26. Rxb6 {[%emt 0:00:05]} Bc5+ {[%emt 0:00:07]} 27. Kh1 {[%emt 0:00:04]} Bxb6 {[%emt 0:00:08]} 28. c5 {[%emt 0:00:09]} Bc7 {[%emt 0:00:30]} 0-1

[Event "Polish Youth Ekstraliga 2022"]
[Site "Lublin"]
[Date "2022.06.27"]
[Round "3.13"]
[White "Dzida, Kamil"]
[Black "Kutowski, Marcel"]
[Result "1/2-1/2"]
[ECO "B90"]
[WhiteElo "2294"]
[BlackElo "1954"]
[Annotator "TA"]
[PlyCount "87"]
[EventDate "2022.06.24"]
[EventType "team-tourn"]
[EventCountry "POL"]
[SourceTitle "playchess.com"]
[Source "ChessBase"]
[SourceQuality "1"]
[TimeControl "40/5400+30:1800+30"]

{[%evp 13,87,4,45,36,45,40,35,38,39,45,31,0,-8,0,75,0,32,28,55,0,-13,-80,-63,-72,-88,-58,-29,-58,-29,-131,-112,-152,-154,-200,-152,-185,-151,-149,-157,-143,-155,-169,-99,-139,-34,-36,-46,-230,-223,-283,-248,-242,-263,-452,-447,-439,-436,-389,-327,-376,-376,-302,-343,-429,-265,-2884,-328,-305,0,0,0,0,0,0,0,0]} 1. e4 {[%emt 0:00:02]} c5 {[%emt 0:00:09]} 2. Nf3 {[%emt 0:00:28][%cal Bg1f3,Bf3d4,Bd4e2,Be2g3][%mdl 32]} d6 {[%emt 0:00:05]} 3. d4 {[%emt 0:00:05]} cxd4 {[%emt 0:00:05]} 4. Nxd4 {[%emt 0:00:05]} Nf6 {[%emt 0:00:04]} 5. Nc3 {[%emt 0:00:06]} a6 {[%emt 0:00:05]} 6. h3 {[%emt 0:00:04]} e5 {[%emt 0:01:19]} 7. Nde2 {[%emt 0:00:57]} Be7 {[%emt 0:00:31]} 8. g4 {[%emt 0:00:10] B90: Sicilian Najdorf: Unusual White 6th moves, 6 Be3 Ng4 and 6 Be3 e5.} Be6 {[%emt 0:11:56]} 9. Bg2 {[%emt 0:00:27]} O-O {[%emt 0:10:49]} 10. Ng3 {[%emt 0:00:10] White is slightly better. is the legacy move (10.0-0).} b5 {[%emt 0:05:59][%cal Bb7b5,Bb5b4][%mdl 32]} 11. O-O {[%emt 0:03:55]} Nbd7 {[%emt 0:02:31]} 12. a4 {[%emt 0:04:55]} b4 {[%emt 0:03:55]} 13. Nd5 {[%emt 0:00:02] [#]} a5 $146 {[%emt 0:00:45]} (13... Bxd5 $11 {keeps the balance.} 14. exd5 a5) ({Predecessor:} 13... Bxd5 14. exd5 Nc5 15. a5 Re8 16. Be3 Qc7 17. g5 Nfd7 18. h4 Rab8 19. b3 Rb5 {1-0 (36) Piorun,K (2517)-Dabrowski,G (2094) Wroclaw 2014}) 14. Be3 {[%emt 0:04:56] White is more active.} (14. Nxe7+ $16 Qxe7 15. Nf5 Bxf5 16. exf5) 14... Rc8 {[%emt 0:06:55]} 15. g5 {[%emt 0:02:18]} Ne8 {[%emt 0:05:03]} (15... Nxd5 $2 16. exd5 Kh8 17. h4 $18) 16. h4 {[%emt 0:02:42]} ({White should try} 16. Nf5 $14 Bxd5 17. Nxe7+ (17. exd5 Bxg5 18. f4 exf4 $17) 17... Qxe7 18. Qxd5) 16... Bxd5 {[%emt 0:07:00]} 17. exd5 {[%emt 0:00:10]} (17. Qxd5 $11 g6 18. Rfc1) 17... f5 $1 $17 {[%emt 0:00:52]} 18. f4 {[%emt 0:03:51]} g6 {[%emt 0:00:39][%cal Oh7h6]} 19. Qd2 {[%emt 0:01:03]} Qc7 {[%emt 0:02:23]} (19... h6 $5) 20. Rac1 {[%emt 0:00:53]} Bd8 {[%emt 0:05:07]} 21. Rfd1 {[%emt 0:02:42]} (21. c3 $11 bxc3 22. Rxc3) 21... Qb8 {[%emt 0:02:11]} 22. Ne2 {[%emt 0:03:44]} Bb6 {[%emt 0:01:40]} 23. Kh2 {[%emt 0:01:47]} (23. c3 $17 {keeps fighting.}) 23... Rf7 {[%emt 0:06:12]} 24. fxe5 {[%emt 0:01:46]} dxe5 {[%emt 0:01:56]} 25. d6 {[%emt 0:00:05]} Bxe3 {[%emt 0:00:49]} 26. Qxe3 {[%emt 0:00:12]} e4 {[%emt 0:02:04]} ({Inferior is} 26... Nxd6 27. Bd5 $11) 27. Qf4 {[%emt 0:03:42]} Rc6 {[%emt 0:02:04]} (27... Ng7 $19 {Strongly threatening ...Ne6.} 28. Kh1 Qa7) 28. Rd5 {[%emt 0:01:59] [#]} Rxd6 {[%emt 0:06:53]} (28... Nxd6 29. Rcd1 Nc4 30. Qxb8+ (30. Rxd7 Qxf4+ 31. Nxf4 Nxb2 $14) 30... Nxb8 31. Rd8+ Rf8 32. Rxf8+ Kxf8 33. Rd8+ Kf7 34. Rxb8 $16) ({Black should play} 28... Ng7 $1 $17 {[%cal Rg7h5] aiming for ...Nh5.} 29. Nd4 Rc4) 29. Rcd1 $1 $15 {[%emt 0:00:13][%cal Rd5d6]} Rxd5 {[%emt 0:00:50]} 30. Rxd5 $2 {[%emt 0:03:29]} (30. Qxb8 $1 $15 Nxb8 31. Rxd5) 30... Nc7 $19 {[%emt 0:01:50][%cal Be8c7,Bc7d5,Bd5e3][%mdl 32]} 31. Rd6 {[%emt 0:00:58]} Qe8 {[%emt 0:02:30]} 32. Nd4 {[%emt 0:10:40]} Ne5 {[%emt 0:01:43]} 33. Bf1 $2 {[%emt 0:12:12]} (33. Kh1 {was worth a try.} Re7 34. Bf1) 33... Qe7 {[%emt 0:01:37]} 34. Rb6 {[%emt 0:04:01]} Nd5 {[%emt 0:01:09] Pair of Knights!} 35. Rb8+ {[%emt 0:00:04]} Rf8 {[%emt 0:00:31]} 36. Rxf8+ {[%emt 0:00:08]} Kxf8 {[%emt 0:00:09]} 37. Qg3 {[%emt 0:00:04]} Qd6 {[%emt 0:06:42][%cal Od5e3] And now ...Ne3! would win.} 38. Bb5 {[%emt 0:02:37]} Ng4+ {[%emt 0:00:41]} 39. Kg2 $2 {[%emt 0:00:05] [#]} (39. Kh3 Ne5 40. Ne2) 39... Nde3+ $2 {[%emt 0:00:40]} (39... f4 $1 40. Qxg4 Ne3+ 41. Kh3 Nxg4 42. Kxg4 Qxd4 43. Kxf4 Qxb2 44. Kxe4 Qxc2+ 45. Kd4 Qc3+ 46. Ke4 Qe1+ 47. Kd4 Qc3+ 48. Kd5 b3 49. Bc4 b2 50. Ba2 Qb4 51. Ke5 Qxa4 52. Bb1 Qa1 53. h5 Qxb1 54. hxg6 hxg6 55. Kd5 Qd3+ 56. Ke5 b1=Q 57. Kf4 Qbf1+ 58. Kg4 Qdh3#) 40. Kh3 {[%emt 0:00:00]} Qxd4 {[%emt 0:00:00]} (40... Ke7 $19 {Hoping for ...f4.} 41. Nc6+ Ke6 42. Qxd6+ Kxd6 43. Nxa5 Nxc2) 41. Qb8+ $11 {[%emt 0:00:20] The position is equal.} Ke7 {[%emt 0:07:05]} 42. Qe8+ {[%emt 0:01:11]} Kd6 {[%emt 0:00:09]} 43. Qd7+ {[%emt 0:00:22]} Ke5 {[%emt 0:00:40]} 44. Qg7+ {[%emt 0:01:06] Weighted Error Value: White=0.50/Black=0.52} 1/2-1/2